lending/lending_fUSD_20250218
["ID","MTS","AMOUNT","RATE_DAILY","PERIOD"]
[353475019,1739872257056,-500.0,0.0001378,2]
[353475020,1739872257067,-500.0,0.0001378,2]
[353475021,1739872257078,-500.0,0.0001378,2]
[353475022,1739872257090,-500.0,0.0001378,2]
[353475023,1739872257101,-500.0,0.0001378,2]
[353475024,1739872257112,-500.0,0.0001378,2]
[353475025,1739872257123,-500.0,0.0001378,2]
[353475026,1739872257135,-500.0,0.0001378,2]
[353475027,1739872257146,-500.0,0.0001378,2]
[353475028,1739872257158,-500.0,0.0001378,2]
[353475029,1739872257169,-500.0,0.0001378,2]
[353475030,1739872257180,-500.0,0.0001378,2]
[353475031,1739872257192,-500.0,0.0001378,2]
[353475032,1739872257212,-500.0,0.0001378,2]
[353475033,1739872257224,-500.0,0.0001378,2]
[353475034,1739872257235,-500.0,0.0001378,2]
[353475035,1739872257247,-500.0,0.0001378,2]
[353475036,1739872257258,-556.76419812,0.0001378,2]
[353475037,1739872257269,-500.0,0.0001378,2]
[353475038,1739872257280,-500.0,0.0001378,2]
[353475039,1739872257291,-500.0,0.0001378,2]
[353475040,1739872257302,-419.44077622,0.0001378,2]
[353475041,1739872257313,-500.0,0.0001378,2]
[353475042,1739872257325,-500.0,0.0001378,2]
[353475043,1739872257336,-500.0,0.0001378,2]
[353475044,1739872257348,-500.0,0.0001378,2]
[353475045,1739872257359,-500.0,0.0001378,2]
[353475046,1739872257371,-500.0,0.0001378,2]
[353475047,1739872257382,-493.32606994,0.0001378,2]
[353475048,1739872257394,-500.0,0.0001378,2]
[353475049,1739872257405,-503.05345672,0.0001378,2]
[353475050,1739872257416,-500.0,0.0001378,2]
[353475051,1739872257427,-213.7714444,0.0001378,2]
[353475052,1739872257438,-500.0,0.0001378,2]
[353475053,1739872257449,-500.0,0.0001378,2]
[353475054,1739872257460,-507.55936134,0.0001378,2]
[353475055,1739872257471,-500.0,0.0001378,2]
[353475056,1739872257482,-500.0,0.0001378,2]
[353475057,1739872257493,-500.0,0.0001378,2]
[353475058,1739872257504,-506.81200381,0.0001378,2]
[353475059,1739872257515,-500.0,0.0001378,2]
[353475060,1739872257526,-500.0,0.0001378,2]
[353475061,1739872257538,-502.83947696,0.0001378,2]
[353475062,1739872257549,-500.0,0.0001378,2]
[353475063,1739872257560,-500.0,0.0001378,2]
[353475064,1739872257571,-508.66,0.0001378,2]
[353475065,1739872257582,-500.0,0.0001378,2]
[353475066,1739872257593,-500.0,0.0001378,2]
[353475067,1739872257603,-500.0,0.0001378,2]
[353475068,1739872257614,-500.0,0.0001378,2]
[353475069,1739872257625,-500.0,0.0001378,2]
[353475070,1739872257636,-500.0,0.0001378,2]
[353475071,1739872257647,-365.63912274,0.0001378,2]
[353475072,1739872257658,-500.0,0.0001378,2]
[353475073,1739872257669,-500.0,0.0001378,2]
[353475074,1739872257680,-500.0,0.0001378,2]
[353475075,1739872257691,-500.0,0.0001378,2]
[353475076,1739872257703,-514.52098337,0.0001378,2]
[353475077,1739872257713,-921.97,0.0001378,2]
[353475078,1739872257724,-500.0,0.0001378,2]
[353475079,1739872257736,-500.0,0.0001378,2]
[353475080,1739872257747,-500.0,0.0001378,2]
[353475081,1739872257758,-500.0,0.0001378,2]
[353475082,1739872257770,-500.0,0.0001378,2]
[353475083,1739872257781,-504.69970967,0.0001378,2]
[353475084,1739872257791,-500.0,0.0001378,2]
[353475085,1739872257803,-500.0,0.0001378,2]
[353475086,1739872257814,-500.0,0.0001378,2]
[353475087,1739872257825,-500.0,0.0001378,2]
[353475088,1739872257837,-502.60268517,0.0001378,2]
[353475089,1739872257848,-538.8,0.0001378,2]
[353475090,1739872257859,-500.0,0.0001378,2]
[353475091,1739872257871,-150.0464276,0.0001378,2]
[353475092,1739872257883,-503.01330352,0.0001378,2]
[353475093,1739872257895,-500.0,0.0001378,2]
[353475094,1739872257909,-502.65313983,0.0001378,2]
[353475095,1739872257920,-500.0,0.0001378,2]
[353475096,1739872257933,-500.0,0.0001378,2]
[353475097,1739872257946,-501.43933648,0.0001378,2]
[353475098,1739872257960,-500.0,0.0001378,2]
[353475099,1739872257973,-500.0,0.0001378,2]
[353475100,1739872257988,-500.0,0.0001378,2]
[353475101,1739872258000,-500.0,0.0001378,2]
[353475102,1739872258014,-500.0,0.0001378,2]
[353475103,1739872258027,-500.0,0.0001378,2]
[353475104,1739872258040,-500.0,0.0001378,2]
[353475105,1739872258053,-500.0,0.0001378,2]
[353475106,1739872258067,-500.0,0.0001378,2]
[353475107,1739872258079,-500.0,0.0001378,2]
[353475108,1739872258092,-501.65,0.0001378,2]
[353475109,1739872258105,-510.95928584,0.0001378,2]
[353475110,1739872258119,-500.0,0.0001378,2]
[353475111,1739872258133,-500.0,0.0001378,2]
[353475112,1739872258146,-500.0,0.0001378,2]
[353475113,1739872258160,-379.91518362,0.0001378,2]
[353475114,1739872258173,-500.0,0.0001378,2]
[353475115,1739872258187,-500.0,0.0001378,2]
[353475116,1739872258200,-500.0,0.0001378,2]
[353475117,1739872258214,-500.0,0.0001378,2]
[353475118,1739872258227,-500.0,0.0001378,2]
[353475119,1739872258240,-1719.72,0.0001378,2]
[353475120,1739872258253,-175.83570347,0.0001378,2]
[353475121,1739872258266,-500.0,0.0001378,2]
[353475122,1739872258279,-500.0,0.0001378,2]
[353475123,1739872258292,-500.0,0.0001378,2]
[353475124,1739872258305,-311.33575149,0.0001378,2]
[353475125,1739872258318,-503.93194871,0.0001378,2]
[353475126,1739872258331,-500.0,0.0001378,2]
[353475127,1739872258344,-500.0,0.0001378,2]
[353475128,1739872258356,-500.0,0.0001378,2]
[353475129,1739872258369,-612.33067518,0.0001378,2]
[353475130,1739872258382,-500.0,0.0001378,2]
[353475131,1739872258394,-500.0,0.0001378,2]
[353475132,1739872258407,-500.0,0.0001378,2]
[353475133,1739872258420,-500.0,0.0001378,2]
[353475134,1739872258432,-512.70310537,0.0001378,2]
[353475135,1739872258446,-500.0,0.0001378,2]
[353475136,1739872258459,-500.0,0.0001378,2]
[353475137,1739872258472,-500.0,0.0001378,2]
[353475138,1739872258624,-500.0,0.0001378,2]
[353475139,1739872258639,-544.27009845,0.0001378,2]
[353475140,1739872258648,-505.97406701,0.0001378,2]
[353475141,1739872258657,-716.32,0.0001378,2]
[353475142,1739872258667,-581.21,0.0001378,2]
[353475143,1739872258676,-500.0,0.0001378,2]
[353475144,1739872258685,-500.0,0.0001378,2]
[353475145,1739872258695,-501.0115519,0.0001378,2]
[353475146,1739872258704,-500.0,0.0001378,2]
[353475147,1739872258714,-1102.62,0.0001378,2]
[353475148,1739872258723,-500.0,0.0001378,2]
[353475149,1739872258731,-730.91,0.0001378,2]
[353475150,1739872258741,-506.37565683,0.0001378,2]
[353475151,1739872258750,-500.0,0.0001378,2]
[353475152,1739872258759,-1712.52,0.0001378,2]
[353475153,1739872258768,-500.0,0.0001378,2]
[353475154,1739872258778,-500.0,0.0001378,2]
[353475155,1739872258787,-500.0,0.0001378,2]
[353475156,1739872258796,-500.0,0.0001378,2]
[353475157,1739872258806,-500.0,0.0001378,2]
[353475158,1739872258815,-501.61431786,0.0001378,2]
[353475159,1739872258824,-596.47,0.0001378,2]
[353475160,1739872258833,-500.36364732,0.0001378,2]
[353475161,1739872258843,-500.0,0.0001378,2]
[353475162,1739872258852,-607.21,0.0001378,2]
[353475163,1739872258861,-500.0,0.0001378,2]
[353475164,1739872258871,-503.05767967,0.0001378,2]
[353475165,1739872258880,-500.0,0.0001378,2]
[353475166,1739872258890,-939.37,0.0001378,2]
[353475167,1739872258900,-500.0,0.0001378,2]
[353475168,1739872258913,-582.016471,0.0001378,2]
[353475169,1739872258922,-500.0,0.0001378,2]
[353475170,1739872258932,-500.0,0.0001378,2]
[353475171,1739872258943,-500.0,0.0001378,2]
[353475172,1739872258952,-501.65353154,0.0001378,2]
[353475173,1739872258962,-500.0,0.0001378,2]
[353475174,1739872258971,-500.0,0.0001378,2]
[353475175,1739872258983,-702.96,0.0001378,2]
[353475176,1739872258992,-500.0,0.0001378,2]
[353475177,1739872259001,-500.0,0.0001378,2]
[353475178,1739872259010,-500.0,0.0001378,2]
[353475179,1739872259019,-500.0,0.0001378,2]
[353475180,1739872259028,-1049.24,0.0001378,2]
[353475181,1739872259038,-279.85500424,0.0001378,2]
[353475182,1739872259047,-500.0,0.0001378,2]
[353475183,1739872259056,-786.72,0.0001378,2]
[353475184,1739872259066,-1541.07,0.0001378,2]
[353475185,1739872259075,-500.0,0.0001378,2]
[353475186,1739872259085,-515.13,0.0001378,2]
[353475187,1739872259094,-500.0,0.0001378,2]
[353475188,1739872259103,-500.0,0.0001378,2]
[353475189,1739872259113,-702.580154,0.0001378,2]
[353475190,1739872259122,-500.0,0.0001378,2]
[353475191,1739872259131,-1112.82,0.0001378,2]
[353475192,1739872259140,-500.0,0.0001378,2]
[353475193,1739872259149,-500.0,0.0001378,2]
[353475194,1739872259158,-500.0,0.0001378,2]
[353475195,1739872259167,-500.0,0.0001378,2]
[353475196,1739872259177,-506.84740125,0.0001378,2]
[353475197,1739872259188,-500.0,0.0001378,7]
[353475198,1739872259197,-500.0,0.0001378,2]
[353475199,1739872259206,-500.0,0.0001378,2]
[353475200,1739872259215,-500.0,0.0001378,2]
[353475201,1739872259224,-500.0,0.0001378,2]
[353475202,1739872259233,-500.0,0.0001378,2]
[353475203,1739872259242,-604.22,0.0001378,2]
[353475204,1739872259251,-1863.5,0.0001378,2]
[353475205,1739872259260,-500.0,0.0001378,2]
[353475206,1739872259270,-500.0,0.0001378,2]
[353475207,1739872259279,-507.48854594,0.0001378,2]
[353475208,1739872259288,-502.58070175,0.0001378,2]
[353475209,1739872259297,-505.66922198,0.0001378,2]
[353475210,1739872259306,-510.5,0.0001378,2]
[353475211,1739872259315,-500.0,0.0001378,2]
[353475212,1739872259325,-500.0,0.0001378,2]
[353475213,1739872259334,-500.0,0.0001378,2]
[353475214,1739872259343,-502.3755358,0.0001378,2]
[353475215,1739872259353,-500.0,0.0001378,2]
[353475216,1739872259368,-500.0,0.0001378,2]
[353475217,1739872259378,-500.0,0.0001378,2]
[353475218,1739872259387,-500.0,0.0001378,2]
[353475219,1739872259397,-506.69393879,0.0001378,2]
[353475220,1739872259406,-500.0,0.0001378,2]
[353475221,1739872259420,-475.80592034,0.0001378,2]
[353475222,1739872259430,-503.18373454,0.0001378,2]
[353475223,1739872259441,-500.0,0.0001378,2]
[353475224,1739872259450,-693.9,0.0001378,2]
[353475225,1739872259459,-500.0,0.0001378,2]
[353475226,1739872259472,-536.66,0.0001378,2]
[353475227,1739872259481,-886.06,0.0001378,2]
[353475228,1739872259490,-933.58,0.0001378,2]
[353475229,1739872259499,-1011.07,0.0001378,2]
[353475230,1739872259508,-500.0,0.0001378,2]
[353475231,1739872259518,-1066.43,0.0001378,2]
[353475232,1739872259527,-518.63797234,0.0001378,2]
[353475233,1739872259537,-782.22,0.0001378,2]
[353475234,1739872259546,-500.0,0.0001378,2]
[353475235,1739872259556,-500.0,0.0001378,2]
[353475236,1739872259566,-500.0,0.0001378,2]
[353475237,1739872259576,-500.0,0.0001378,2]
[353475238,1739872259585,-500.0,0.0001378,2]
[353475239,1739872259595,-500.0,0.0001378,2]
[353475240,1739872259605,-1330.9,0.0001378,2]
[353475241,1739872259614,-500.0,0.0001378,2]
[353475242,1739872259623,-500.0,0.0001378,2]
[353475243,1739872259632,-836.31,0.0001378,2]
[353475244,1739872259642,-939.6,0.0001378,2]
[353475245,1739872259651,-500.0,0.0001378,2]
[353475246,1739872259660,-500.0,0.0001378,2]
[353475247,1739872259670,-512.47335492,0.0001378,2]
[353475248,1739872259679,-504.60096416,0.0001378,2]
[353475249,1739872259689,-500.0,0.0001378,2]
[353475250,1739872259699,-598.45,0.0001378,2]
[353475251,1739872259708,-500.0,0.0001378,2]
[353475252,1739872259717,-496.23657848,0.0001378,2]
[353475253,1739872259726,-858.55,0.0001378,2]
[353475254,1739872259735,-500.0,0.0001378,2]
[353475255,1739872259744,-506.83214807,0.0001378,2]
[353475256,1739872259754,-500.0,0.0001378,2]
[353475257,1739872259763,-500.0,0.0001378,2]
[353475258,1739872259772,-500.0,0.0001378,2]
[353475259,1739872259781,-500.0,0.0001378,2]
[353475260,1739872259791,-974.94,0.0001378,2]
[353475261,1739872259800,-500.0,0.0001378,2]
[353475262,1739872259809,-500.0,0.0001378,2]
[353475263,1739872259818,-1766.73,0.0001378,2]
[353475264,1739872259827,-500.0,0.0001378,2]
[353475265,1739872259837,-219.76646461,0.0001378,2]
[353475266,1739872259846,-500.0,0.0001378,2]
[353475267,1739872259855,-500.0,0.0001378,2]
[353475268,1739872259865,-500.0,0.0001378,2]
[353475269,1739872259874,-512.06018064,0.0001378,2]
[353475270,1739872259883,-500.0,0.0001378,2]
[353475271,1739872259892,-707.34,0.0001378,2]
[353475272,1739872259905,-500.0,0.0001378,2]
[353475273,1739872259915,-500.0,0.0001378,2]
[353475274,1739872259924,-500.0,0.0001378,2]
[353475275,1739872259935,-530.54941827,0.0001378,2]
[353475276,1739872259946,-500.0,0.0001378,2]
[353475277,1739872259955,-500.0,0.0001378,2]
[353475278,1739872259965,-500.0,0.0001378,2]
[353475279,1739872259975,-584.1,0.0001378,2]
[353475280,1739872259986,-543.64,0.0001378,2]
[353475281,1739872259996,-1248.75,0.0001378,2]
[353475282,1739872260006,-696.59,0.0001378,2]
[353475283,1739872260015,-2474.78,0.0001378,2]
[353475284,1739872260025,-504.81462892,0.0001378,2]
[353475285,1739872260034,-1606.64,0.0001378,2]
[353475286,1739872260045,-500.0,0.0001378,2]
[353475287,1739872260054,-953.81,0.0001378,2]
[353475288,1739872260065,-505.42627889,0.0001378,2]
[353475289,1739872260076,-1126.83,0.0001378,2]
[353475290,1739872260085,-682.43,0.0001378,2]
[353475291,1739872260095,-500.0,0.0001378,2]
[353475292,1739872260104,-501.99808991,0.0001378,2]
[353475293,1739872260114,-500.0,0.0001378,2]
[353475294,1739872260123,-500.0,0.0001378,2]
[353475295,1739872260133,-379.59425882,0.0001378,2]
[353475296,1739872260143,-523.28,0.0001378,2]
[353475297,1739872260152,-500.0,0.0001378,2]
[353475298,1739872260162,-500.0,0.0001378,2]
[353475299,1739872260172,-540.756651,0.0001378,2]
[353475300,1739872260181,-500.0,0.0001378,2]
[353475301,1739872260192,-781.07,0.0001378,2]
[353475302,1739872260202,-500.0,0.0001378,2]
[353475303,1739872260212,-500.0,0.0001378,2]
[353475304,1739872260221,-500.0,0.0001378,2]
[353475305,1739872260231,-1037.7,0.0001378,2]
[353475306,1739872260240,-503.32300921,0.0001378,2]
[353475307,1739872260250,-500.0,0.0001378,2]
[353475308,1739872260259,-500.0,0.0001378,2]
[353475309,1739872260269,-501.99218526,0.0001378,2]
[353475310,1739872260279,-500.0,0.0001378,2]
[353475311,1739872260288,-500.0,0.0001378,2]
[353475312,1739872260298,-739.28,0.0001378,2]
[353475313,1739872260308,-500.0,0.0001378,2]
[353475314,1739872260317,-500.0,0.0001378,2]
[353475315,1739872260327,-500.0,0.0001378,2]
[353475316,1739872260337,-992.84,0.0001378,2]
[353475317,1739872260346,-500.0,0.0001378,2]
[353475318,1739872260356,-805.36,0.0001378,2]
[353475319,1739872260365,-502.62806699,0.0001378,2]
[353475320,1739872260375,-500.0,0.0001378,2]
[353475321,1739872260386,-500.0,0.0001378,2]
[353475322,1739872260395,-741.7,0.0001378,2]
[353475323,1739872260404,-500.0,0.0001378,2]
[353475324,1739872260414,-500.0,0.0001378,2]
[353475325,1739872260423,-500.0,0.0001378,2]
[353475326,1739872260436,-500.0,0.0001378,2]
[353475327,1739872260446,-500.0,0.0001378,2]
[353475328,1739872260455,-509.68107225,0.0001378,2]
[353475329,1739872260465,-500.0,0.0001378,2]
[353475330,1739872260474,-1249.99,0.0001378,2]
[353475331,1739872260483,-500.0,0.0001378,2]
[353475332,1739872260493,-1774.34,0.0001378,2]
[353475333,1739872260502,-500.0,0.0001378,2]
[353475334,1739872260512,-500.0,0.0001378,2]
[353475335,1739872260521,-812.46,0.0001378,2]
[353475336,1739872260531,-896.83,0.0001378,2]
[353475337,1739872260540,-500.0,0.0001378,2]
[353475338,1739872260550,-500.0,0.0001378,2]
[353475339,1739872260559,-500.0,0.0001378,2]
[353475340,1739872260568,-657.29,0.0001378,2]
[353475341,1739872260578,-500.0,0.0001378,2]
[353475342,1739872260588,-500.0,0.0001378,2]
[353475343,1739872260597,-500.0,0.0001378,2]
[353475344,1739872260607,-509.0229215,0.0001378,2]
[353475345,1739872260616,-500.0,0.0001378,2]
[353475346,1739872260625,-500.0,0.0001378,2]
[353475347,1739872260635,-500.0,0.0001378,2]
[353475348,1739872260644,-971.61,0.0001378,2]
[353475349,1739872260653,-507.61311879,0.0001378,2]
[353475350,1739872260663,-500.0,0.0001378,2]
[353475351,1739872260672,-1704.38,0.0001378,2]
[353475352,1739872260681,-500.0,0.0001378,2]
[353475353,1739872260693,-500.0,0.0001378,2]
[353475354,1739872260703,-1232.04,0.0001378,2]
[353475355,1739872260712,-500.0,0.0001378,2]
[353475356,1739872260721,-702.31,0.0001378,2]
[353475357,1739872260731,-976.65,0.0001378,2]
[353475358,1739872260740,-619.66,0.0001378,2]
[353475359,1739872260750,-500.0,0.0001378,2]
[353475360,1739872260760,-500.0,0.0001378,2]
[353475361,1739872260769,-719.02,0.0001378,2]
[353475362,1739872260779,-500.0,0.0001378,2]
[353475363,1739872260788,-235.34219128,0.0001378,2]
[353475364,1739872260798,-500.0,0.0001378,2]
[353475365,1739872260807,-500.60697767,0.0001378,2]
[353475366,1739872260817,-500.0,0.0001378,2]
[353475367,1739872260826,-555.17416756,0.0001378,2]
[353475368,1739872260835,-500.0,0.0001378,2]
[353475369,1739872260845,-548.6,0.0001378,2]
[353475370,1739872260854,-500.0,0.0001378,2]
[353475371,1739872260863,-2856.63,0.0001378,2]
[353475372,1739872260873,-500.0,0.0001378,2]
[353475373,1739872260882,-500.02970828,0.0001378,2]
[353475374,1739872260892,-2609.58,0.0001378,2]
[353475375,1739872260903,-500.0,0.0001378,2]
[353475376,1739872260914,-500.0,0.0001378,2]
[353475377,1739872260924,-500.0,0.0001378,2]
[353475378,1739872260934,-500.0,0.0001378,2]
[353475379,1739872260944,-502.53370365,0.0001378,2]
[353475380,1739872260954,-1000.0,0.0001378,2]
[353475381,1739872260964,-500.0,0.0001378,2]
[353475382,1739872260973,-500.0,0.0001378,2]
[353475383,1739872260983,-500.0,0.0001378,2]
[353475384,1739872260993,-504.75296433,0.0001378,2]
[353475385,1739872261003,-500.0,0.0001378,2]
[353475386,1739872261013,-500.0,0.0001378,2]
[353475387,1739872261023,-500.0,0.0001378,2]
[353475388,1739872261033,-500.0,0.0001378,2]
[353475389,1739872261042,-500.0,0.0001378,2]
[353475390,1739872261052,-500.0,0.0001378,2]
[353475391,1739872261061,-590.44,0.0001378,2]
[353475392,1739872261071,-502.74199118,0.0001378,2]
[353475393,1739872261080,-500.0,0.0001378,2]
[353475394,1739872261089,-502.57146413,0.0001378,2]
[353475395,1739872261103,-500.0,0.0001378,2]
[353475396,1739872261113,-841.8,0.0001378,2]
[353475397,1739872261122,-727.6,0.0001378,2]
[353475398,1739872261131,-500.0,0.0001378,2]
[353475399,1739872261141,-665.21,0.0001378,2]
[353475400,1739872261150,-500.0,0.0001378,2]
[353475401,1739872261159,-500.0,0.0001378,2]
[353475402,1739872261168,-500.0,0.0001378,2]
[353475403,1739872261177,-500.0,0.0001378,2]
[353475404,1739872261188,-500.0,0.0001378,2]
[353475405,1739872261197,-510.30099096,0.0001378,2]
[353475406,1739872261206,-500.0,0.0001378,2]
[353475407,1739872261215,-818.77,0.0001378,2]
[353475408,1739872261224,-500.75612647,0.0001378,2]
[353475409,1739872261234,-500.0,0.0001378,2]
[353475410,1739872261243,-332.92563766,0.0001378,2]
[353475411,1739872261252,-500.0,0.0001378,2]
[353475412,1739872261262,-551.49,0.0001378,2]
[353475413,1739872261271,-502.02677678,0.0001378,2]
[353475414,1739872261280,-926.1,0.0001378,2]
[353475415,1739872261290,-502.8070538,0.0001378,2]
[353475416,1739872261299,-500.0,0.0001378,2]
[353475417,1739872261309,-500.0,0.0001378,2]
[353475418,1739872261318,-500.0,0.0001378,2]
[353475419,1739872261327,-503.967495,0.0001378,2]
[353475420,1739872261336,-1712.2,0.0001378,2]
[353475421,1739872261345,-500.0,0.0001378,2]
[353475422,1739872261355,-500.0,0.0001378,2]
[353475423,1739872261364,-513.55081778,0.0001378,2]
[353475424,1739872261373,-500.0,0.0001378,2]
[353475425,1739872261382,-500.0,0.0001378,2]
[353475426,1739872261392,-500.0,0.0001378,2]
[353475427,1739872261401,-500.0,0.0001378,2]
[353475428,1739872261411,-500.0,0.0001378,2]
[353475429,1739872261420,-500.0,0.0001378,2]
[353475430,1739872261430,-500.0,0.0001378,2]
[353475431,1739872261440,-515.71465255,0.0001378,2]
[353475432,1739872261449,-623.41,0.0001378,2]
[353475433,1739872261459,-500.0,0.0001378,2]
[353475434,1739872261468,-500.0,0.0001378,2]
[353475435,1739872261477,-500.0,0.0001378,2]
[353475436,1739872261486,-500.0,0.0001378,2]
[353475437,1739872261495,-500.0,0.0001378,2]
[353475438,1739872261505,-500.0,0.0001378,2]
[353475439,1739872261515,-151.0,0.0001378,2]
[353475440,1739872261524,-594.16,0.0001378,2]
[353475441,1739872261534,-500.0,0.0001378,2]
[353475442,1739872261543,-502.92155051,0.0001378,2]
[353475443,1739872261552,-1116.12,0.0001378,2]
[353475444,1739872261562,-500.0,0.0001378,2]
[353475445,1739872261571,-500.0,0.0001378,2]
[353475446,1739872261580,-1171.66,0.0001378,2]
[353475447,1739872261589,-500.0,0.0001378,2]
[353475448,1739872261598,-500.0,0.0001378,2]
[353475449,1739872261607,-503.05612016,0.0001378,2]
[353475450,1739872261617,-500.0,0.0001378,2]
[353475451,1739872261626,-502.02384302,0.0001378,2]
[353475452,1739872261636,-500.0,0.0001378,2]
[353475453,1739872261645,-517.29106233,0.0001378,2]
[353475454,1739872261655,-500.0,0.0001378,2]
[353475455,1739872261664,-223.48321008,0.0001378,2]
[353475456,1739872261673,-500.0,0.0001378,2]
[353475457,1739872261684,-500.0,0.0001378,2]
[353475458,1739872261693,-500.0,0.0001378,2]
[353475459,1739872261703,-500.0,0.0001378,2]
[353475460,1739872261712,-500.0,0.0001378,2]
[353475461,1739872261721,-630.19862595,0.0001378,2]
[353475462,1739872261731,-500.0,0.0001378,2]
[353475463,1739872261741,-500.0,0.0001378,2]
[353475464,1739872261751,-500.0,0.0001378,2]
[353475465,1739872261760,-500.0,0.0001378,2]
[353475466,1739872261935,-500.0,0.0001378,2]
[353475467,1739872261948,-500.0,0.0001378,2]
[353475468,1739872261960,-500.0,0.0001378,2]
[353475469,1739872261970,-500.0,0.0001378,2]
[353475470,1739872261980,-500.0,0.0001378,2]
[353475471,1739872261992,-654.27,0.0001378,2]
[353475472,1739872262002,-500.0,0.0001378,2]
[353475473,1739872262011,-500.0,0.0001378,2]
[353475474,1739872262021,-500.0,0.0001378,2]
[353475475,1739872262031,-500.0,0.0001378,2]
[353475476,1739872262041,-500.0,0.0001378,2]
[353475477,1739872262050,-500.0,0.0001378,2]
[353475478,1739872262060,-500.0,0.0001378,2]
[353475479,1739872262069,-493.74768643,0.0001378,2]
[353475480,1739872262078,-500.0,0.0001378,2]
[353475481,1739872262088,-500.0,0.0001378,2]
[353475482,1739872262098,-500.0,0.0001378,2]
[353475483,1739872262108,-846.58,0.0001378,2]
[353475484,1739872262117,-587.22329907,0.0001378,2]
[353475485,1739872262127,-500.0,0.0001378,2]
[353475486,1739872262137,-500.0,0.0001378,2]
[353475487,1739872262147,-500.0,0.0001378,2]
[353475488,1739872262156,-500.0,0.0001378,2]
[353475489,1739872262166,-501.82614257,0.0001378,2]
[353475490,1739872262175,-500.0,0.0001378,2]
[353475491,1739872262186,-500.0,0.0001378,2]
[353475492,1739872262195,-500.0,0.0001378,2]
[353475493,1739872262204,-500.0,0.0001378,2]
[353475494,1739872262214,-500.87421598,0.0001378,2]
[353475495,1739872262223,-500.0,0.0001378,2]
[353475496,1739872262233,-500.0,0.0001378,2]
[353475497,1739872262242,-500.0,0.0001378,2]
[353475498,1739872262251,-604.45114966,0.0001378,2]
[353475499,1739872262260,-500.0,0.0001378,2]
[353475500,1739872262269,-500.0,0.0001378,2]
[353475501,1739872262278,-618.85,0.0001378,2]
[353475502,1739872262288,-500.0,0.0001378,2]
[353475503,1739872262297,-500.0,0.0001378,2]
[353475504,1739872262306,-500.0,0.0001378,2]
[353475505,1739872262315,-500.0,0.0001378,2]
[353475506,1739872262325,-1074.37,0.0001378,2]
[353475507,1739872262334,-500.0,0.0001378,2]
[353475508,1739872262344,-502.68834543,0.0001378,2]
[353475509,1739872262354,-500.0,0.0001378,2]
[353475510,1739872262364,-500.0,0.0001378,2]
[353475511,1739872262373,-151.0,0.0001378,2]
[353475512,1739872262382,-500.0,0.0001378,2]
[353475513,1739872262392,-500.0,0.0001378,2]
[353475514,1739872262402,-500.0,0.0001378,2]
[353475515,1739872262411,-500.0,0.0001378,2]
[353475516,1739872262421,-501.88335013,0.0001378,2]
[353475517,1739872262430,-500.0,0.0001378,2]
[353475518,1739872262441,-500.0,0.0001378,2]